bitfinex/quotes_BTCUSD_20240731
["timestamp","ask_amount","ask_price","bid_price","bid_amount"]
[1722457088141,0.0030686,65122.0,65109.0,0.0662]
[1722457088538,0.0030686,65122.0,65110.0,0.153585]
[1722457088753,0.001,65123.0,65114.0,0.14955172]
[1722457089212,0.001,65123.0,65122.0,0.1456]
[1722457089419,0.001,65123.0,65122.0,1.06293872]
[1722457089628,0.001,65123.0,65122.0,0.75582372]
[1722457089848,0.0030686,65141.0,65122.0,0.60226672]
[1722457090061,0.00292306,65141.0,65123.0,0.14955172]
[1722457090478,0.01221015,65141.0,65124.0,0.15440472]
[1722457090697,0.01221015,65141.0,65117.0,0.1]
[1722457090698,0.153701,65061.0,65051.0,0.20168717]
[1722457090911,0.01,65074.0,65043.0,0.0148379]
[1722457091123,0.01,65074.0,65018.0,0.014604]
[1722457091124,0.01,65033.0,65023.0,0.12203967]
[1722457091341,0.0939575,65060.0,65024.0,0.061567]
[1722457091342,0.778935,65025.0,65024.0,0.061567]
[1722457091573,0.778935,65025.0,65006.0,0.09094023]
[1722457091574,0.153829,65007.0,65006.0,0.09094023]
[1722457091792,0.153829,65007.0,65001.0,3.3657602]
[1722457091793,0.01,65002.0,65001.0,3.34977947]
[1722457092001,0.01,65002.0,65001.0,3.20094972]
[1722457092002,0.89708284,65002.0,65001.0,3.20094972]
[1722457092213,0.58087884,65002.0,65001.0,2.92755729]
[1722457092414,1.06247936,65002.0,65001.0,2.73479638]
[1722457092625,1.30453192,65002.0,65001.0,2.73479638]
[1722457092840,1.30453192,65002.0,64984.0,0.01]
[1722457092841,0.851817,65001.0,65000.0,6.37667842]
[1722457093056,0.99270345,65001.0,65000.0,6.03304352]
[1722457093258,0.69501645,65001.0,65000.0,6.03304352]
[1722457093466,1.4303572,65001.0,65000.0,6.03304352]
[1722457093691,1.4053572,65001.0,65000.0,6.03304352]
[1722457093897,1.0370702,65001.0,65000.0,6.03304352]
[1722457094135,0.4755402,65001.0,65000.0,6.03304352]
[1722457094355,0.49162501,65001.0,65000.0,6.03404352]
[1722457094557,1.03909867,65001.0,65000.0,6.03404352]
[1722457094759,0.57756867,65001.0,65000.0,6.03304352]
[1722457094960,0.73341167,65001.0,65000.0,6.03404352]
[1722457095225,0.57956867,65001.0,65000.0,6.03404352]
[1722457095858,0.33978201,65001.0,65000.0,6.03404352]
[1722457096273,0.33578201,65001.0,65000.0,6.03304352]
[1722457096731,0.33578201,65001.0,65000.0,6.03404352]
[1722457096732,0.65317673,65001.0,65000.0,6.03404352]
[1722457096934,0.34978201,65001.0,65000.0,6.03304352]
[1722457097140,0.36078201,65001.0,65000.0,6.03404352]
[1722457097574,0.49633373,65001.0,65000.0,6.03304352]
[1722457097786,0.98986373,65001.0,65000.0,6.03404352]
[1722457098031,0.98986373,65001.0,65000.0,6.03304352]
[1722457098032,1.19668145,65001.0,65000.0,6.03304352]
[1722457098239,1.21668145,65001.0,65000.0,6.03304352]
[1722457098447,2.01685545,65001.0,65000.0,5.81654352]
[1722457098672,2.01685545,65001.0,65000.0,2.63357536]
[1722457098673,2.08472473,65001.0,65000.0,2.63357536]
[1722457098918,1.85509244,65001.0,65000.0,2.63357536]
[1722457099374,2.3336285,65001.0,65000.0,0.45037967]
[1722457100056,0.042,64992.0,64991.0,0.408315]
[1722457100280,0.042,64992.0,64984.0,0.01]
[1722457100281,0.503644,64985.0,64984.0,0.01]
[1722457100525,0.503644,64985.0,64962.0,6.132e-05]
[1722457100527,0.503673,64981.0,64962.0,6.132e-05]
[1722457100752,0.503673,64981.0,64933.0,0.0604]
[1722457100753,0.012,64954.0,64933.0,0.0604]
[1722457101224,0.17155172,64954.0,64933.0,0.0604]
[1722457101447,0.17155172,64954.0,64888.0,0.4560107]
[1722457101448,1.51919162,64954.0,64913.0,0.0645]
[1722457101677,1.55219162,64954.0,64913.0,0.0645]
[1722457101948,1.54219162,64954.0,64913.0,0.0645]
[1722457102158,0.473878,64952.0,64951.0,0.11482673]
[1722457102398,0.473878,64952.0,64951.0,0.004604]
[1722457102399,1.55222262,64952.0,64951.0,0.004604]
[1722457102572,1.55222262,64952.0,64951.0,0.04398182]
[1722457103085,1.119751,64950.0,64949.0,0.7339638]
[1722457103294,1.69229068,64950.0,64949.0,0.79021784]
[1722457103472,1.69229068,64950.0,64892.0,0.1435]
[1722457103473,0.185997,64936.0,64892.0,0.1435]
[1722457103785,0.01,64923.0,64868.0,0.06574766]
[1722457103924,0.01,64923.0,64863.0,0.0112524]
[1722457103925,0.01,64885.0,64884.0,0.44858472]
[1722457104124,0.07476412,64909.0,64878.0,0.0651]
[1722457104125,0.01,64882.0,64878.0,0.0651]
[1722457104525,0.01,64882.0,64863.0,0.0112524]
[1722457104527,0.154167,64865.0,64863.0,0.0112524]
[1722457104625,0.51834884,64879.0,64863.0,0.0112524]
[1722457104626,0.78835968,64864.0,64863.0,0.0112524]
[1722457104822,0.78835968,64864.0,64856.0,0.12]
[1722457104823,0.80981297,64858.0,64857.0,0.50071723]
[1722457105036,0.80981297,64858.0,64857.0,0.34653223]
[1722457105037,1.90703525,64858.0,64857.0,0.34653223]
[1722457105234,2.21453525,64858.0,64857.0,0.32878004]
[1722457105433,0.65762012,64858.0,64857.0,0.32378004]
[1722457105705,0.65762012,64858.0,64856.0,0.12]
[1722457105706,0.16845269,64857.0,64856.0,0.08729406]
[1722457105882,0.16845269,64857.0,64820.0,0.00109903]
[1722457105883,0.01,64839.0,64820.0,0.00109903]
[1722457106123,0.36658433,64857.0,64821.0,0.00109903]
[1722457106124,0.07476412,64842.0,64821.0,0.00109903]
[1722457106323,0.08366509,64856.0,64801.0,0.061806]
[1722457106324,0.17476412,64856.0,64839.0,0.00109903]
[1722457106593,0.00890097,64851.0,64826.0,0.00109903]
[1722457106825,0.00890097,64851.0,64819.0,0.0733852]
[1722457106826,0.17476412,64856.0,64819.0,0.06948423]
[1722457106827,0.01,64848.0,64819.0,0.06948423]
[1722457107100,0.17476412,64856.0,64819.0,0.06948423]
[1722457107101,0.01,64833.0,64819.0,0.06948423]
[1722457107304,0.01,64821.0,64819.0,0.06948423]
[1722457107504,0.07476412,64831.0,64819.0,0.06948423]
[1722457107710,0.14955172,64831.0,64819.0,0.06948423]
[1722457107925,0.01,64851.0,64820.0,0.17255172]
[1722457107926,0.014,64851.0,64820.0,0.17255172]
[1722457108126,0.01,64864.0,64835.0,0.001]
[1722457108351,0.01,64864.0,64854.0,0.154192]
[1722457108559,0.01,64863.0,64836.0,0.29015172]
[1722457108762,0.01,64861.0,64837.0,0.01406]
[1722457108970,0.01,64877.0,64846.0,0.308422]
[1722457109173,0.01,64914.0,64846.0,0.308422]
[1722457109174,0.45858472,64871.0,64860.0,0.154176]
[1722457109380,0.01,64873.0,64847.0,0.14955172]
[1722457109589,0.01,64893.0,64848.0,0.023]
[1722457109590,0.01,64877.0,64848.0,0.023]
[1722457109804,0.15955172,64877.0,64849.0,0.14955172]
[1722457110014,0.15955172,64877.0,64836.0,0.1506]
[1722457110015,0.01,64859.0,64836.0,0.1406]
[1722457110227,0.07476412,64876.0,64850.0,0.14955172]
[1722457110228,0.01,64872.0,64850.0,0.14955172]
[1722457110442,0.44858472,64870.0,64851.0,0.308397]
[1722457110642,0.44858472,64870.0,64852.0,0.04579487]
[1722457110643,0.01,64866.0,64852.0,0.04579487]
[1722457110851,0.07476412,64868.0,64837.0,0.01506]
[1722457110852,0.01,64859.0,64837.0,0.01506]
[1722457111077,0.07476412,64846.0,64837.0,0.0159]
[1722457111314,0.07476412,64861.0,64838.0,0.01565]
[1722457111315,0.01,64855.0,64838.0,0.01565]
[1722457111539,0.01,64851.0,64838.0,0.01504427]
[1722457111746,0.07476412,64854.0,64837.0,0.16545172]
[1722457111747,0.07476412,64840.0,64837.0,0.0159]
[1722457111984,0.01,64845.0,64837.0,0.0159]
[1722457112208,0.08476412,64838.0,64837.0,0.0159]
[1722457112408,0.01,64838.0,64837.0,0.0159]
[1722457112796,0.15955172,64838.0,64837.0,0.0159]
[1722457112997,0.15955172,64838.0,64821.0,0.308538]
[1722457112998,0.01,64827.0,64821.0,0.308538]
[1722457113217,0.01,64827.0,64819.0,0.00758423]
[1722457113218,0.01,64831.0,64820.0,0.01618592]
[1722457113422,0.07476412,64846.0,64819.0,0.00758423]
[1722457113423,0.01,64827.0,64819.0,0.00758423]
[1722457113647,0.07476412,64846.0,64820.0,0.18116624]
[1722457113649,0.01,64840.0,64820.0,0.18116624]
[1722457113856,0.44858472,64852.0,64824.0,0.15055172]
[1722457114070,0.44858472,64852.0,64851.0,0.154199]
[1722457114272,0.44858472,64852.0,64851.0,0.462598]
[1722457114497,0.01,64853.0,64852.0,0.154197]
[1722457114729,0.01,64853.0,64832.0,0.0015542]
[1722457114939,0.01,64831.0,64828.0,0.03813139]
[1722457115181,0.07476412,64833.0,64824.0,0.0769]
[1722457115182,0.01,64827.0,64824.0,0.0769]
[1722457115389,0.07476412,64840.0,64824.0,0.0769]
[1722457115390,0.08476412,64825.0,64824.0,0.0769]
[1722457115611,0.01,64827.0,64824.0,0.0769]
[1722457115838,0.07476412,64840.0,64839.0,0.154228]
[1722457115839,0.01,64840.0,64839.0,0.154228]
[1722457116045,0.308184,64897.0,64841.0,0.154223]
[1722457116046,0.01,64842.0,64841.0,0.154223]
[1722457116260,0.01,64843.0,64842.0,0.462663]
[1722457116474,0.01,64843.0,64826.0,0.0015542]
[1722457116475,0.01,64845.0,64826.0,0.0015542]
[1722457116689,0.01,64843.0,64840.0,0.154224]
[1722457116911,0.01,64843.0,64838.0,0.308459]
[1722457117149,0.01,64844.0,64838.0,0.0616937]
[1722457117381,0.01,64842.0,64832.0,0.0015542]
[1722457117532,0.07476412,64852.0,64827.0,0.14955172]
[1722457117533,0.01,64840.0,64827.0,0.14955172]
[1722457117732,0.01,64840.0,64829.0,0.0009083]
[1722457117961,0.01,64866.0,64829.0,0.0009083]
[1722457117962,0.01,64846.0,64845.0,0.154213]
[1722457118165,0.44858472,64870.0,64845.0,0.154213]
[1722457118166,0.01,64858.0,64846.0,0.308422]
[1722457118367,0.01,64855.0,64854.0,0.154192]
[1722457118815,0.01,64849.0,64848.0,0.154206]
[1722457119007,0.14955172,64867.0,64849.0,0.154202]
[1722457119008,0.01,64850.0,64849.0,0.154202]
[1722457119209,0.01,64862.0,64849.0,0.14955172]
[1722457119409,0.01,64899.0,64832.0,0.0637]
[1722457119410,0.17013771,64861.0,64860.0,0.462534]
[1722457119556,0.01,64859.0,64858.0,0.15418]
[1722457119774,0.01,64854.0,64842.0,0.308438]
[1722457119977,0.01,64846.0,64845.0,0.12940967]
[1722457120182,0.17014287,64846.0,64845.0,0.12940967]
[1722457120407,0.17014287,64846.0,64845.0,0.48162124]
[1722457120610,0.17014287,64846.0,64845.0,0.43783667]
[1722457120784,0.17014287,64846.0,64832.0,0.0637]
[1722457120785,0.01,64835.0,64832.0,0.0637]
[1722457120991,0.07476412,64853.0,64827.0,0.154256]
[1722457120992,0.01,64828.0,64827.0,0.154256]
[1722457121191,0.01,64834.0,64829.0,0.308503]
[1722457121458,0.01,64834.0,64832.0,0.462733]
[1722457121459,0.11520118,64833.0,64832.0,0.462733]
[1722457121670,0.12520118,64833.0,64832.0,0.771222]
[1722457121901,0.12520118,64833.0,64832.0,1.00084448]
[1722457121902,0.11520118,64833.0,64832.0,1.00084448]
[1722457122143,0.0784,64867.0,64837.0,0.308463]
[1722457122144,0.01,64851.0,64837.0,0.308463]
[1722457122378,0.07476412,64861.0,64838.0,0.14955172]
[1722457122379,0.44858472,64850.0,64838.0,0.14955172]
[1722457122592,0.01,64852.0,64838.0,0.14955172]
[1722457122593,0.00958232,64852.0,64851.0,0.43665]
[1722457122802,0.0784,64881.0,64851.0,0.14955172]
[1722457122803,0.00958232,64858.0,64851.0,0.14955172]
[1722457123009,0.0784,64881.0,64862.0,0.462519]
[1722457123010,0.00958232,64863.0,64862.0,0.462519]
[1722457123237,0.00958232,64871.0,64870.0,0.462462]
[1722457123485,0.00958232,64871.0,64857.0,0.0649]
[1722457123486,0.00958232,64859.0,64858.0,0.154182]
[1722457123700,0.00958232,64859.0,64844.0,0.0601]
[1722457123701,0.00958232,64852.0,64844.0,0.368531]
[1722457123910,0.07476412,64868.0,64850.0,0.462606]
[1722457123911,0.00958232,64851.0,64850.0,0.462606]
[1722457124118,0.07476412,64868.0,64845.0,0.0368531]
[1722457124119,0.00958232,64852.0,64851.0,0.770997]
[1722457124326,0.00958232,64852.0,64851.0,0.154199]
[1722457124535,0.00958232,64852.0,64851.0,0.462598]
[1722457124779,0.00958232,64850.0,64846.0,0.308418]
[1722457125001,0.00958232,64851.0,64850.0,0.462606]
[1722457125210,0.59813644,64866.0,64847.0,0.0015542]
[1722457125211,0.00958232,64848.0,64847.0,0.0015542]
[1722457125421,0.24980994,64848.0,64847.0,0.0015542]
[1722457125623,0.00958232,64838.0,64834.0,0.0613]
[1722457125830,0.00958232,64847.0,64845.0,0.308427]
[1722457126034,0.24025945,64846.0,64845.0,0.154213]
[1722457126259,0.00958232,64840.0,64837.0,0.0445982]
[1722457126468,0.24025163,64839.0,64834.0,0.0613]
[1722457126676,0.07476412,64853.0,64837.0,0.462697]
[1722457126677,0.24983395,64838.0,64837.0,0.462697]
[1722457126881,0.24025163,64838.0,64837.0,0.49181865]
[1722457127101,0.14955172,64852.0,64837.0,0.49181865]
[1722457127102,0.00958232,64844.0,64837.0,0.02912165]
[1722457127328,0.24025153,64843.0,64842.0,0.462663]
[1722457127750,0.24025153,64843.0,64842.0,1.27827719]
[1722457127958,0.24025153,64843.0,64842.0,1.30127719]
[1722457128166,0.45858472,64887.0,64842.0,1.30127719]
[1722457128167,0.06177,64884.0,64870.0,0.154153]
[1722457128372,0.06177,64884.0,64861.0,0.154175]
[1722457128373,0.44858472,64862.0,64861.0,0.154175]
[1722457128586,0.24458487,64877.0,64844.0,0.14955172]
[1722457128587,0.00958232,64867.0,64866.0,0.154163]
[1722457128789,0.00958232,64872.0,64871.0,0.154152]
[1722457128995,0.44858472,64887.0,64866.0,0.0154163]
[1722457128996,0.00958232,64874.0,64866.0,0.0154163]
[1722457129214,0.44858472,64887.0,64874.0,0.154144]
[1722457129215,0.00958232,64875.0,64874.0,0.154144]
[1722457129426,0.00958232,64875.0,64865.0,0.0642]
[1722457129427,0.00958232,64876.0,64872.0,0.308297]
[1722457129635,0.22431584,64885.0,64873.0,0.0616614]
[1722457129636,0.00958232,64882.0,64873.0,0.0616614]
[1722457129883,0.061759,64895.0,64874.0,0.14955172]
[1722457129884,0.00958232,64895.0,64874.0,0.14955172]
[1722457130109,0.07476412,64901.0,64874.0,0.14955172]
[1722457130110,0.00958232,64892.0,64886.0,0.154115]
[1722457130317,0.00958232,64892.0,64874.0,0.14955172]
[1722457130318,0.00958232,64892.0,64875.0,0.02276517]
[1722457130518,0.00958232,64893.0,64876.0,0.14955172]
[1722457130728,0.00958232,64895.0,64894.0,0.154097]
[1722457130938,0.44858472,64905.0,64876.0,0.17255172]
[1722457131142,0.19206553,64904.0,64877.0,0.01973157]
[1722457131356,0.0784,64917.0,64894.0,0.308194]
[1722457131357,0.12804368,64903.0,64894.0,0.308194]
[1722457131563,0.12804368,64903.0,64877.0,0.01973157]
[1722457131564,0.00958232,64900.0,64897.0,0.0651]
[1722457131821,0.21418736,64920.0,64897.0,0.0651]
[1722457132070,0.00958232,64904.0,64898.0,0.02146517]
[1722457132311,0.05238736,64922.0,64898.0,0.02146517]
[1722457132312,0.00958232,64905.0,64898.0,0.02146517]
[1722457132553,0.13796412,64923.0,64899.0,0.14955172]
[1722457132554,0.00958232,64912.0,64899.0,0.14955172]
[1722457132805,0.12801333,64911.0,64910.0,0.462177]
[1722457133065,0.07476412,64923.0,64910.0,0.462177]
[1722457133066,0.00958232,64914.0,64910.0,0.14955172]
[1722457133299,0.07476412,64923.0,64911.0,0.14955172]
[1722457133544,0.19199582,64922.0,64911.0,0.14955172]
[1722457133793,0.00958232,64926.0,64916.0,0.308088]
[1722457134007,0.00958232,64926.0,64907.0,0.01]
[1722457134008,0.07476412,64927.0,64926.0,0.154021]
[1722457134211,0.07476412,64927.0,64917.0,0.18036052]
[1722457134429,0.07476412,64927.0,64902.0,0.04773117]
[1722457134430,0.07476412,64920.0,64902.0,0.04773117]
[1722457134636,0.07476412,64920.0,64915.0,0.154046]
[1722457134849,0.07476412,64920.0,64916.0,0.14955172]
[1722457135059,0.08434644,64927.0,64916.0,0.14955172]
[1722457135263,0.08434644,64927.0,64917.0,0.32304017]
[1722457135477,0.00958232,64924.0,64917.0,0.16450689]
[1722457135674,0.07476412,64927.0,64920.0,0.308068]
[1722457135881,0.07476412,64927.0,64921.0,0.04725749]
[1722457136087,0.00958232,64926.0,64921.0,0.04725749]
[1722457136291,0.00958232,64924.0,64918.0,0.14955172]
[1722457136495,0.08434644,64927.0,64918.0,0.45762872]
[1722457136706,0.08434644,64927.0,64919.0,0.07806769]
[1722457136919,0.08434644,64927.0,64920.0,0.14955172]
[1722457137136,0.08434644,64927.0,64922.0,0.308061]
[1722457137137,0.07476412,64927.0,64922.0,0.308061]
[1722457137349,0.00091301,64924.0,64922.0,0.14955172]
[1722457137565,0.00958232,64921.0,64917.0,0.01495517]
[1722457137773,0.00958232,64921.0,64901.0,0.081]
[1722457137774,0.00958232,64917.0,64902.0,0.11697117]
[1722457137979,0.07476412,64923.0,64914.0,0.154049]
[1722457137980,0.07476412,64915.0,64914.0,0.154049]
[1722457138183,0.07476412,64923.0,64914.0,0.14955172]
[1722457138389,0.07476412,64923.0,64903.0,0.02979712]
[1722457138390,0.07476412,64923.0,64915.0,0.14955172]
[1722457138595,0.07476412,64923.0,64922.0,0.15403]
[1722457138801,0.00091301,64924.0,64922.0,0.16495472]
[1722457139005,0.00958232,64920.0,64908.0,0.308125]
[1722457139209,0.00958232,64920.0,64903.0,0.02979712]
[1722457139210,0.07476412,64914.0,64909.0,0.17255172]
[1722457139418,0.07476412,64914.0,64909.0,0.14955172]
[1722457139620,0.07476412,64914.0,64903.0,0.02979712]
[1722457139622,0.00958232,64911.0,64903.0,0.02979712]
[1722457139826,0.07476412,64921.0,64905.0,0.14955172]
[1722457140029,0.07476412,64912.0,64905.0,0.14955172]
[1722457140233,0.07476412,64912.0,64906.0,0.037732]
[1722457140446,0.07476412,64912.0,64895.0,0.01]
[1722457140447,0.00958232,64901.0,64889.0,0.0809]
[1722457140655,0.00958232,64901.0,64876.0,0.0809]
[1722457140656,0.00958232,64889.0,64876.0,0.0809]
[1722457140873,0.00958232,64909.0,64882.0,0.00041768]
[1722457141083,0.44858472,64906.0,64884.0,0.01]
[1722457141293,0.44858472,64931.0,64892.0,0.01]
[1722457141294,0.00958232,64916.0,64892.0,0.01]
[1722457141501,0.44858472,64931.0,64892.0,0.01]
[1722457141502,0.44858472,64910.0,64900.0,0.1486]
[1722457141705,0.16000985,64909.0,64908.0,0.462192]
[1722457141911,0.16000985,64909.0,64900.0,0.1486]
[1722457142125,0.16000202,64908.0,64901.0,0.17255172]
[1722457142338,0.44858472,64931.0,64906.0,0.14955172]
[1722457142339,0.15999562,64907.0,64906.0,0.14955172]
[1722457142557,0.15999562,64907.0,64906.0,0.63475672]
[1722457142758,0.15999562,64907.0,64906.0,0.94289372]
[1722457143174,0.44858472,64931.0,64906.0,0.94289372]
[1722457143175,0.08434644,64929.0,64923.0,0.154028]
[1722457143388,0.01049533,64924.0,64923.0,0.0154028]
[1722457143623,0.00958232,64921.0,64906.0,0.023]
[1722457143894,0.00916509,64910.0,64907.0,0.0015542]
[1722457144126,0.07476412,64921.0,64903.0,0.0015542]
[1722457144127,0.00916509,64917.0,64903.0,0.0015542]
[1722457144378,0.00916509,64913.0,64903.0,0.0015542]
[1722457144629,0.00916509,64913.0,64901.0,0.0015542]
[1722457144865,0.07476412,64921.0,64914.0,0.308098]
[1722457145116,0.00916509,64919.0,64912.0,0.154053]
[1722457145371,0.00916509,64914.0,64902.0,0.0015542]
[1722457145610,0.07476412,64921.0,64915.0,0.154047]
[1722457145611,0.00916509,64916.0,64915.0,0.154047]
[1722457145820,0.07476412,64921.0,64919.0,0.154036]
[1722457146025,0.07476412,64921.0,64904.0,0.01]
[1722457146245,0.00916509,64918.0,64912.0,0.308104]
[1722457146447,0.00916509,64910.0,64901.0,0.023]
[1722457146653,0.00916509,64904.0,64900.0,0.1486]
[1722457146859,0.08392921,64901.0,64900.0,0.0302693]
[1722457147066,0.08392921,64901.0,64872.0,0.30912991]
[1722457147067,0.00916509,64888.0,64880.0,0.0607]
[1722457147272,0.07476412,64882.0,64880.0,0.07587537]
[1722457147725,0.00916509,64881.0,64880.0,0.01517537]
[1722457147906,0.00916509,64881.0,64880.0,0.16472709]
[1722457148121,0.07476412,64894.0,64880.0,0.16472709]
[1722457148122,0.00916509,64887.0,64880.0,0.16472709]
[1722457148329,0.00916509,64884.0,64881.0,0.14955172]
[1722457148538,0.00916509,64882.0,64881.0,0.14955172]
[1722457148773,0.00916509,64881.0,64880.0,0.01517537]
[1722457148997,0.00916509,64867.0,64863.0,0.0602]
[1722457149207,0.00916509,64872.0,64864.0,0.19457672]
[1722457149407,0.00916509,64874.0,64864.0,0.34874372]
[1722457149617,0.00916509,64866.0,64864.0,0.19457672]
[1722457149827,0.00916509,64866.0,64864.0,0.14955172]
[1722457150098,0.00916509,64865.0,64864.0,0.14955172]
[1722457151161,0.00916509,64867.0,64864.0,0.14955172]
[1722457151381,0.00916509,64864.0,64863.0,0.01517537]
[1722457151602,0.00916509,64864.0,64848.0,0.083]
[1722457151603,0.00916509,64857.0,64856.0,0.01517537]
[1722457151852,0.00292306,64864.0,64856.0,0.16472709]
[1722457151853,0.00916509,64858.0,64856.0,0.16472709]
[1722457152059,0.00916509,64858.0,64857.0,0.14955172]
[1722457152550,0.00916509,64863.0,64857.0,0.14955172]
[1722457152751,0.369906,64892.0,64857.0,0.14955172]
[1722457152752,0.00916509,64867.0,64857.0,0.14955172]
[1722457152983,0.0617,64892.0,64865.0,0.14955172]
[1722457152984,0.00916509,64879.0,64865.0,0.14955172]
[1722457153199,0.0784,64898.0,64882.0,0.462376]
[1722457153200,0.00916509,64890.0,64882.0,0.462376]
[1722457153411,0.00916509,64887.0,64882.0,0.67334069]
[1722457153677,0.14106412,64901.0,64882.0,0.67334069]
[1722457153678,0.00916509,64890.0,64882.0,0.21096469]
[1722457153931,0.00916509,64890.0,64883.0,0.15110592]
[1722457153932,0.24009792,64889.0,64883.0,0.15110592]
[1722457154178,0.24009792,64889.0,64883.0,0.0015542]
[1722457154179,0.08392921,64884.0,64883.0,0.0015542]
[1722457154442,0.00916509,64863.0,64854.0,0.01517537]
[1722457154674,0.00916509,64859.0,64855.0,0.14955172]
[1722457154884,0.00916509,64855.0,64854.0,0.01517537]
[1722457155093,0.01208815,64855.0,64854.0,0.01517537]
[1722457155339,0.00916509,64848.0,64846.0,0.01517537]
[1722457155551,0.07476412,64863.0,64846.0,0.01517537]
[1722457155552,0.24318142,64847.0,64846.0,0.01517537]
[1722457155755,0.1,64869.0,64846.0,0.01517537]
[1722457155756,0.00916509,64856.0,64847.0,0.01011652]
[1722457155960,0.00916509,64856.0,64848.0,0.16711908]
[1722457155961,0.24022972,64855.0,64848.0,0.16711908]
[1722457156168,0.44858472,64865.0,64848.0,0.16711908]
[1722457156169,0.00916509,64849.0,64848.0,0.01010757]
[1722457156379,0.25235495,64849.0,64848.0,0.01010757]
[1722457156608,0.25235495,64849.0,64843.0,0.00083]
[1722457156609,0.00916509,64844.0,64843.0,0.00083]
[1722457156838,0.00916509,64850.0,64843.0,0.15038172]
[1722457157052,0.24941444,64849.0,64844.0,0.19695253]
[1722457157263,0.00916509,64850.0,64844.0,0.36132407]
[1722457157488,0.00916509,64845.0,64844.0,0.20710907]
[1722457157751,0.00916509,64845.0,64844.0,0.01015654]
[1722457157978,0.25234703,64845.0,64844.0,0.01015654]
[1722457158190,0.25234703,64845.0,64843.0,0.00083]
[1722457158191,0.00916509,64844.0,64843.0,0.00083]
[1722457158417,0.24942397,64844.0,64843.0,0.00083]
[1722457159076,0.25234703,64844.0,64843.0,0.00083]
[1722457159747,0.25234703,64844.0,64811.0,0.2040547]
[1722457159748,0.17096509,64820.0,64811.0,0.2040547]
[1722457159964,0.86894984,64818.0,64811.0,0.2040547]
[1722457160184,0.56077569,64818.0,64811.0,0.2040547]
[1722457160402,0.24942397,64818.0,64817.0,0.03690595]
[1722457160644,0.25234703,64818.0,64817.0,0.03690595]
[1722457160872,0.25234703,64818.0,64817.0,0.01]
[1722457160873,0.02419943,64818.0,64817.0,0.01]
[1722457161099,0.02419943,64818.0,64817.0,0.15955172]
[1722457161100,0.03336452,64818.0,64817.0,0.15955172]
[1722457161335,0.00447726,64843.0,64793.0,0.061913]
[1722457161336,0.00916509,64804.0,64793.0,0.061913]
[1722457161600,0.0582,64817.0,64793.0,0.0001]
[1722457161601,0.00916509,64794.0,64793.0,0.0001]
[1722457162282,0.01208815,64794.0,64793.0,0.0001]
[1722457163238,0.00916509,64803.0,64793.0,0.0001]
[1722457163475,0.44858472,64810.0,64793.0,0.0001]
[1722457163476,0.00916509,64794.0,64793.0,0.0001]
[1722457163936,0.01208815,64794.0,64793.0,0.0001]
[1722457164640,0.03337182,64794.0,64793.0,0.0001]
[1722457164848,0.02420673,64794.0,64793.0,0.14965172]
[1722457165058,0.02420673,64794.0,64793.0,0.0001]
[1722457165059,0.01208815,64794.0,64793.0,0.0001]
[1722457165268,0.16163987,64794.0,64793.0,0.0001]
[1722457165557,0.00916509,64794.0,64793.0,0.0001]
[1722457165768,0.01208815,64794.0,64793.0,0.0001]
[1722457165985,0.01208815,64794.0,64793.0,0.01101057]
[1722457166200,0.21983987,64794.0,64793.0,0.0001]
[1722457166415,0.21983987,64794.0,64793.0,0.01101057]
[1722457166632,0.25182386,64794.0,64793.0,0.0001]
[1722457166878,0.00916509,64807.0,64793.0,0.14965172]
[1722457167092,0.318461,64838.0,64794.0,0.48398589]
[1722457167093,0.00916509,64795.0,64794.0,0.48398589]
[1722457167306,0.00916509,64795.0,64794.0,0.01091983]
[1722457168900,0.16163987,64795.0,64794.0,0.01091983]
[1722457169134,0.16163987,64795.0,64793.0,0.0001]
[1722457169135,0.01208815,64795.0,64793.0,0.0001]
[1722457169373,0.01208815,64795.0,64790.0,0.025]
[1722457169374,0.00916509,64791.0,64790.0,0.02150684]
[1722457169612,0.49778187,64791.0,64790.0,0.02150684]
[1722457169855,0.58380168,64791.0,64790.0,0.02150684]
[1722457170109,0.66407809,64779.0,64778.0,0.01138681]
[1722457170358,1.66623974,64779.0,64778.0,0.01138681]
[1722457170596,1.66623974,64779.0,64778.0,0.03176089]
[1722457170597,0.69346092,64779.0,64778.0,0.03176089]
[1722457170846,0.23348093,64779.0,64778.0,0.03176089]
[1722457171082,0.23640399,64779.0,64778.0,0.03176089]
[1722457171539,0.26640399,64779.0,64778.0,0.03176089]
[1722457171761,0.26640399,64779.0,64775.0,0.07411878]
[1722457171762,0.26640399,64779.0,64760.0,0.0005]
[1722457171763,0.18356409,64767.0,64760.0,0.0005]
[1722457171978,0.18356409,64767.0,64766.0,0.74577496]
[1722457171979,0.89000797,64767.0,64766.0,0.74577496]
[1722457172249,1.18081534,64767.0,64766.0,0.74577496]
[1722457172451,0.987124,64767.0,64766.0,0.74577496]
[1722457172862,0.36770551,64767.0,64766.0,0.74577496]
[1722457173078,0.36770551,64767.0,64766.0,0.74077496]
[1722457173079,0.15871681,64767.0,64766.0,0.74077496]
[1722457173536,0.16871681,64767.0,64766.0,0.74077496]
[1722457173759,0.15871681,64767.0,64766.0,0.74077496]
[1722457174176,0.15871681,64767.0,64766.0,0.73859304]
[1722457174635,0.00916509,64767.0,64766.0,0.72146488]
[1722457174847,0.02316509,64767.0,64766.0,0.73959106]
[1722457175064,0.02316509,64767.0,64766.0,0.81355017]
[1722457175295,0.02316509,64767.0,64766.0,0.73959106]
[1722457175738,0.02316509,64767.0,64766.0,0.89399306]
[1722457175969,0.0015542,64781.0,64766.0,0.89399306]
[1722457175970,0.00916509,64773.0,64766.0,1.21994678]
[1722457176254,0.00292306,64772.0,64767.0,0.31267258]
[1722457176477,0.00916509,64786.0,64768.0,0.15522618]
[1722457176690,0.45306198,64789.0,64767.0,0.2945464]
[1722457176691,0.0015542,64789.0,64788.0,1.141546]
[1722457176907,0.00916509,64801.0,64800.0,0.847602]
[1722457177136,0.00916509,64822.0,64800.0,0.15522618]
[1722457177340,0.00916509,64818.0,64800.0,0.16522618]
[1722457178269,0.01,64844.0,64800.0,0.16522618]
[1722457178270,0.01,64844.0,64806.0,0.308613]
[1722457178271,0.00916509,64813.0,64806.0,0.308613]
[1722457178491,0.00916509,64816.0,64815.0,0.154285]
[1722457178694,0.00916509,64818.0,64815.0,0.04159301]
[1722457178897,0.00916509,64818.0,64806.0,0.14955172]
[1722457178898,0.00916509,64818.0,64816.0,0.05361071]
[1722457179103,0.00916509,64818.0,64817.0,0.19587301]